[Event "Gaprindashvili Cup Women I Stage 2020"]
[Site "Online"]
[Date "2020.11.04"]
[Round "3.1"]
[White "Esadze, Tamari"]
[Black "Tsotsonava, Elene"]
[Result "1-0"]
[ECO "B49"]
[WhiteElo "1889"]
[BlackElo "1805"]
[Annotator "NA"]
[PlyCount "79"]
[EventDate "2020.11.04"]
[EventType "swiss"]
[SourceTitle "playchess.com"]
[Source "ChessBase"]
[SourceQuality "1"]
[TimeControl "1500+5"]

{[%evp 15,74,22,39,5,0,16,18,8,0,5,21,32767,32767,32767,32767,32767,32767,32767,32767,32767,32767,92,100,115,84,47,32767,51,29,47,32767,32767,32767,68,150,152,260,32767,235,366,32767,280,587,679,591,32767,782,32767,32767,428,32767,422,662,467,525,497,840,699,897,910,12832]} 1. e4 {[%emt 0:00:02]} c5 {[%emt 0:00:02]} 2. Nf3 {[%emt 0:00:03]} e6 {[%emt 0:00:03]} 3. d4 {[%emt 0:00:02]} cxd4 {[%emt 0:00:01]} 4. Nxd4 {[%emt 0:00:01]} Nc6 {[%emt 0:00:02]} 5. Nc3 {[%emt 0:00:05]} Qc7 {[%emt 0:00:01]} 6. a3 {[%emt 0:00:10]} a6 {[%emt 0:00:03]} 7. Be2 {[%emt 0:00:07]} Nf6 {[%emt 0:00:01]} 8. Be3 {[%emt 0:00:08]} b5 {[%emt 0:00:04]} 9. Nxc6 {[%emt 0:00:54]} dxc6 {[%emt 0:00:13]} 10. O-O {[%emt 0:00:15]} Be7 {[%emt 0:00:04] B49: Sicilian: Taimanov: 5 Nc3 Qc7 6 Be3 a6 7 Be2.} 11. f4 {[%emt 0:00:12]} Bb7 {[%emt 0:00:08]} 12. e5 {[%emt 0:00:31]} Nd7 {[%emt 0:00:27]} 13. Ne4 {[%emt 0:00:32] [#]} c5 $146 {[%emt 0:00:24]} ({Predecessor:} 13... O-O 14. Nd6 Rfd8 15. b4 a5 16. Bc5 axb4 17. axb4 Nxc5 18. bxc5 Rxa1 19. Qxa1 Ra8 {½-½ (36) Moll,R (2587)-Soltau,A (2574) ICCF email 2010}) 14. Nd6+ {[%emt 0:00:41]} Bxd6 {[%emt 0:00:04]} 15. exd6 {[%emt 0:00:02]} Qb8 {[%emt 0:00:39]} 16. c4 {[%emt 0:00:38]} Be4 {[%emt 0:01:36]} 17. cxb5 {[%emt 0:00:50]} axb5 {[%emt 0:00:07]} 18. Rc1 {[%emt 0:01:17]} Qb7 {[%emt 0:02:22]} 19. Bxc5 {[%emt 0:01:16]} Bxg2 {[%emt 0:00:18]} 20. Rf2 {[%emt 0:00:03]} Bc6 {[%emt 0:00:15]} 21. Bd4 {[%emt 0:00:38]} O-O {[%emt 0:00:18]} 22. Bd3 {[%emt 0:00:29]} f5 {[%emt 0:01:50]} 23. Qe2 {[%emt 0:00:56]} Rae8 {[%emt 0:00:34]} 24. Qe3 {[%emt 0:01:14]} Nf6 {[%emt 0:01:33]} ({Better is} 24... Rf7) 25. h3 {[%emt 0:00:44]} Qd7 {[%emt 0:02:21]} (25... Rf7 $142 26. Rfc2 Bd7) 26. Be5 {[%emt 0:00:30]} Rc8 {[%emt 0:00:15]} 27. Rfc2 {[%emt 0:00:38]} Qb7 {[%emt 0:02:10]} 28. Kh2 {[%emt 0:01:36]} Rf7 $2 {[%emt 0:02:45]} (28... Nd5 {is tougher.} 29. Qg3 Rf7) 29. Bxf6 {[%emt 0:00:59]} Rxf6 {[%emt 0:00:09]} 30. Qe5 {[%emt 0:00:22]} Rff8 $2 {[%emt 0:01:35]} (30... Rg6 31. Bxb5 Be8) 31. Qxe6+ {[%emt 0:00:17]} Kh8 {[%emt 0:00:01]} 32. Qe7 {[%emt 0:01:31]} Qb6 {[%emt 0:02:10]} 33. Rg1 {[%emt 0:00:50]} ({Inferior is} 33. Rxc6 Qf2+ {[%mdl 64] Double Attack} 34. Kh1 Qf3+ {[%mdl 64] Double Attack} 35. Kh2 Qf2+ 36. Kh1 Qf3+ {[%mdl 64] Double Attack} 37. Kh2 Qf2+ $11) 33... Qd4 {[%emt 0:02:17]} 34. Qe5 {[%emt 0:01:55]} Qxe5 {[%emt 0:00:06]} 35. fxe5 {[%emt 0:00:02]} Kg8 {[%emt 0:01:32]} 36. Rgc1 {[%emt 0:00:16]} Bd7 {[%emt 0:00:03]} 37. Rxc8 {[%emt 0:00:13]} Rxc8 $18 {[%emt 0:00:23]} 38. Rxc8+ {[%emt 0:00:05]} Bxc8 {[%emt 0:00:01]} 39. Bxb5 {[%emt 0:00:02]} Kf7 {[%emt 0:00:01]} 40. d7 {[%emt 0:00:03]} 1-0

[Event "Gaprindashvili Cup Women I Stage 2020"]
[Site "Online"]
[Date "2020.11.04"]
[Round "3.2"]
[White "Bedoshvili, Dea"]
[Black "Khazhomia, Anuki"]
[Result "1-0"]
[ECO "A81"]
[WhiteElo "1667"]
[BlackElo "1880"]
[Annotator "NA RC"]
[PlyCount "105"]
[EventDate "2020.11.04"]
[EventType "swiss"]
[SourceTitle "playchess.com"]
[Source "ChessBase"]
[SourceQuality "1"]
[TimeControl "1500+5"]

1. d4 {[%emt 0:00:02]} f5 {[%emt 0:00:13]} 2. Nf3 {[%emt 0:00:06]} Nf6 {[%emt 0:00:03]} 3. g3 {[%emt 0:00:03]} g6 {[%emt 0:00:03]} 4. Bg2 {[%emt 0:00:02]} Bg7 {[%emt 0:00:07]} 5. O-O {[%emt 0:00:02]} d6 {[%emt 0:00:02]} 6. Nbd2 {[%emt 0:00:07]} O-O {[%emt 0:00:04]} 7. c3 {[%emt 0:00:03]} c6 {[%emt 0:00:38]} 8. Re1 {[%emt 0:00:42]} Qc7 {[%emt 0:00:21] A81: Dutch Defence: 2 g3.} (8... d5 $14) 9. e4 {[%emt 0:00:23]} fxe4 {[%emt 0:00:27]} 10. Nxe4 {[%emt 0:00:03]} Nxe4 {[%emt 0:00:09]} 11. Rxe4 {[%emt 0:00:06]} Bf5 {[%emt 0:00:04]} 12. Rh4 {[%emt 0:00:13] [#]} Nd7 $146 {[%emt 0:09:32]} ({Predecessor:} 12... Bf6 13. Bg5 Nd7 14. Qd2 Rae8 15. Re1 d5 16. Bh3 Be4 17. Be6+ Kh8 18. Rf4 Qd6 {1-0 (28) Filippov,V (1929)-Krivtsov,A (1953) Voronezh 2015}) 13. g4 {[%emt 0:04:51]} Be4 $1 {[%emt 0:01:34]} 14. Ng5 {[%emt 0:00:06] Discovered Attack} Bxg2 {[%emt 0:00:16]} 15. Kxg2 {[%emt 0:00:02]} Qa5 {[%emt 0:07:10]} (15... Bf6 $14) 16. Qb3+ {[%emt 0:00:35]} ({Much less strong is} 16. Nxh7 $6 Qd5+ 17. f3 Rfe8 $14) 16... Qd5+ {[%emt 0:00:04]} 17. Qxd5+ {[%emt 0:00:05]} cxd5 {[%emt 0:00:02]} 18. Nxh7 {[%emt 0:00:12]} Rfe8 {[%emt 0:00:51]} 19. Be3 {[%emt 0:03:15]} e5 {[%emt 0:00:03]} 20. Ng5 {[%emt 0:01:37]} Nb6 {[%emt 0:01:33]} 21. dxe5 {[%emt 0:01:47]} Nc4 {[%emt 0:00:47]} 22. Rh3 {[%emt 0:03:44]} dxe5 {[%emt 0:01:17]} 23. b3 {[%emt 0:01:10]} Nd6 $2 {[%emt 0:00:15]} (23... Nxe3+ $16 {is a better defense.} 24. Rxe3 (24. fxe3 e4 $11) 24... Bf6) 24. Rd1 {[%emt 0:00:30]} Nb5 {[%emt 0:00:03]} 25. Rxd5 {[%emt 0:01:20]} Nxc3 {[%emt 0:00:03]} 26. Rd7 {[%emt 0:00:07]} b6 $2 {[%emt 0:01:08]} (26... Red8) 27. Rh7 {[%emt 0:00:13]} Bh8 {[%emt 0:00:04]} 28. Rxa7 $2 {[%emt 0:01:11]} (28. Rh6 {mates} Re7 29. Rxe7 Kf8 30. Rf7+ Kg8 31. Rxg6+ Bg7 32. Rgxg7+ Kh8 33. Rg6 Nxa2 34. Rh7#) 28... Rxa7 {[%emt 0:00:03]} 29. Rxa7 {[%emt 0:00:03]} Nd5 {[%emt 0:00:03]} 30. Rb7 {[%emt 0:00:48]} Bf6 {[%emt 0:00:03]} 31. Ne4 {[%emt 0:00:06]} Bd8 {[%emt 0:00:02]} 32. Nd6 $18 {[%emt 0:01:09]} Rf8 {[%emt 0:00:02]} 33. Nc4 {[%emt 0:00:08]} Bf6 {[%emt 0:00:18]} 34. Bxb6 {[%emt 0:01:15]} Nf4+ {[%emt 0:00:07]} 35. Kf1 {[%emt 0:00:14]} Nd3 {[%emt 0:00:11]} 36. Nd2 {[%emt 0:00:19]} Bh4 {[%emt 0:00:04]} 37. Ne4 {[%emt 0:00:05]} Nc1 {[%emt 0:00:03]} 38. Bc5 {[%emt 0:00:19]} Rf4 {[%emt 0:00:02]} 39. Be3 {[%emt 0:00:29]} Rxe4 {[%emt 0:00:03]} 40. Bxc1 {[%emt 0:00:03]} Rxg4 {[%emt 0:00:02]} 41. Be3 {[%emt 0:00:06]} Bf6 {[%emt 0:00:10]} 42. a4 {[%emt 0:00:11]} Rh4 {[%emt 0:00:03]} 43. a5 {[%emt 0:00:04]} Rxh2 {[%emt 0:00:03]} 44. a6 {[%emt 0:00:02]} Rh1+ {[%emt 0:00:02]} 45. Kg2 {[%emt 0:00:04]} Ra1 {[%emt 0:00:02]} 46. a7 {[%emt 0:00:01]} e4 {[%emt 0:00:24]} 47. Rb8+ {[%emt 0:00:06]} Kg7 {[%emt 0:00:02]} 48. a8=Q {[%emt 0:00:04]} Rxa8 {[%emt 0:00:04]} 49. Rxa8 {[%emt 0:00:02]} Be5 {[%emt 0:00:03]} 50. b4 {[%emt 0:00:03]} Kf6 {[%emt 0:00:01]} 51. b5 {[%emt 0:00:02]} Ke6 {[%emt 0:00:01]} 52. b6 {[%emt 0:00:02]} Kd7 {[%emt 0:00:03]} 53. Ra7+ {[%emt 0:00:02]} 1-0

[Event "Gaprindashvili Cup Women I Stage 2020"]
[Site "Online"]
[Date "2020.11.04"]
[Round "3.4"]
[White "Maghlakelidze, Rusudan"]
[Black "Kirtadze, Anastasia"]
[Result "1-0"]
[ECO "B50"]
[WhiteElo "1613"]
[BlackElo "1810"]
[Annotator "NA RC"]
[PlyCount "109"]
[EventDate "2020.11.04"]
[EventType "swiss"]
[SourceTitle "playchess.com"]
[Source "ChessBase"]
[SourceQuality "1"]
[TimeControl "1500+5"]

1. e4 {[%emt 0:00:00]} c5 {[%emt 0:00:13]} 2. Nf3 {[%emt 0:00:05]} d6 {[%emt 0:00:04]} 3. c4 {[%emt 0:00:02]} g6 {[%emt 0:00:06]} 4. Be2 {[%emt 0:00:03]} Bg7 {[%emt 0:00:04]} 5. O-O {[%emt 0:00:02]} Nc6 {[%emt 0:00:04]} 6. Nc3 {[%emt 0:00:08] B50: Sicilian: 2...d6, Miscellaneous.} e6 {[%emt 0:00:35]} 7. d3 {[%emt 0:00:19]} Nge7 {[%emt 0:00:04]} 8. Bg5 {[%emt 0:00:03]} O-O {[%emt 0:00:05]} 9. Qd2 {[%emt 0:00:03] [#]} Re8 $146 {[%emt 0:00:17]} ({Predecessor:} 9... a6 10. Bh6 Rb8 11. Bxg7 Kxg7 12. d4 cxd4 13. Nxd4 Nxd4 14. Qxd4+ e5 15. Qd2 Nc6 {0-1 (45) Yilmaz,K (1594)-Ranaldi,L (2176) Fornebu 2016}) 10. Rfe1 {[%emt 0:01:32]} Qc7 {[%emt 0:00:22]} 11. Nb5 {[%emt 0:00:43]} Qd7 {[%emt 0:00:10]} 12. d4 {[%emt 0:00:38]} a6 {[%emt 0:00:42]} 13. dxc5 {[%emt 0:00:19]} axb5 {[%emt 0:00:22]} 14. cxd6 {[%emt 0:00:41]} bxc4 {[%emt 0:00:31]} 15. Red1 {[%emt 0:01:54] [#]} f6 {[%emt 0:01:17]} ({Better is} 15... Nd5 $1 $15 {[%mdl 512]} 16. exd5 exd5) 16. Bh6 {[%emt 0:00:18]} (16. Be3 $14) 16... Na5 {[%emt 0:00:25]} (16... Bxh6 $11 {keeps the balance.} 17. Qxh6 {[#]} Nd5 $1 {[%mdl 512]} 18. exd5 exd5) 17. dxe7 {[%emt 0:01:22]} Qxe7 {[%emt 0:00:43]} 18. Bxg7 {[%emt 0:00:05]} Qxg7 {[%emt 0:00:07]} 19. Qb4 {[%emt 0:00:33]} Bd7 {[%emt 0:02:29]} 20. Bxc4 {[%emt 0:00:44]} Bc6 {[%emt 0:00:46]} 21. Nd4 {[%emt 0:01:01]} Nxc4 {[%emt 0:01:50]} 22. Qxc4 {[%emt 0:01:46]} Rac8 {[%emt 0:00:36]} 23. Nxc6 {[%emt 0:00:33]} ({Don't go for} 23. Nxe6 $2 Qf7 $19) 23... Rxc6 {[%emt 0:00:05]} 24. Qb3 {[%emt 0:00:52]} h5 {[%emt 0:00:24]} 25. Rac1 {[%emt 0:01:29]} Qc7 {[%emt 0:00:41]} 26. Rxc6 {[%emt 0:00:13]} Qxc6 {[%emt 0:00:03]} 27. Qd3 {[%emt 0:00:06]} Qb6 {[%emt 0:00:46]} 28. e5 {[%emt 0:01:33] Discovered Attack} f5 $2 {[%emt 0:01:15] [#]} (28... Kf7 29. exf6 Kxf6 30. Qf3+ Ke7 31. Qa3+ Kf6 32. Qc3+ e5 33. Qf3+ Ke7 34. Qa3+ Ke6 35. Qh3+ Kf7 36. Qf3+ Ke7 37. Qa3+ Ke6) 29. Qd7 {[%emt 0:02:44]} (29. Qg3 $142 $1 Qc7 30. Qxg6+ {[%mdl 64] Double Attack} Kf8 31. f4) 29... Kf8 {[%emt 0:02:33]} 30. Qd6+ {[%emt 0:01:18]} Qxd6 {[%emt 0:00:09]} 31. Rxd6 {[%emt 0:00:02]} Rc8 {[%emt 0:00:11]} (31... b5 $142 32. Rb6 Rd8) 32. g3 {[%emt 0:00:12]} Ke7 {[%emt 0:00:06]} 33. Rb6 {[%emt 0:00:06]} Rc7 {[%emt 0:00:03]} 34. h4 {[%emt 0:00:44]} Kd7 {[%emt 0:00:26]} 35. Kg2 {[%emt 0:00:13]} Ke7 {[%emt 0:00:09]} 36. b4 {[%emt 0:00:31]} Kd7 {[%emt 0:00:06]} 37. a4 {[%emt 0:00:02]} Rc4 $18 {[%emt 0:00:57]} 38. Rxb7+ {[%emt 0:00:05]} Kc6 {[%emt 0:00:05]} 39. Rb5 {[%emt 0:00:45]} Rc3 {[%emt 0:00:04]} 40. Rc5+ {[%emt 0:00:02]} Rxc5 {[%emt 0:00:03]} 41. bxc5 {[%emt 0:00:01]} Kxc5 {[%emt 0:00:02]} 42. Kf3 {[%emt 0:00:03]} Kb4 {[%emt 0:00:07]} 43. Kf4 {[%emt 0:00:01]} Kxa4 {[%emt 0:00:03]} 44. Kg5 {[%emt 0:00:02]} Kb5 {[%emt 0:00:03]} 45. Kxg6 {[%emt 0:00:02]} Kc5 {[%emt 0:00:03]} 46. Kxh5 {[%emt 0:00:01]} Kd5 {[%emt 0:00:01]} 47. f4 {[%emt 0:00:02]} Ke4 {[%emt 0:00:05]} 48. Kg6 {[%emt 0:00:02]} Kf3 {[%emt 0:00:02]} 49. h5 {[%emt 0:00:08]} Kxg3 {[%emt 0:00:02]} 50. Kg5 {[%emt 0:00:01]} Kf3 {[%emt 0:00:03]} 51. h6 {[%emt 0:00:01]} Ke4 {[%emt 0:00:03]} 52. h7 {[%emt 0:00:01]} Kd5 {[%emt 0:00:03]} 53. h8=Q {[%emt 0:00:03]} Ke4 {[%emt 0:00:02]} 54. Qh1+ {[%emt 0:00:03]} Ke3 {[%emt 0:00:03]} 55. Qe1+ {[%emt 0:00:03]} 1-0

[Event "Gaprindashvili Cup Women I Stage 2020"]
[Site "Online"]
[Date "2020.11.04"]
[Round "3.6"]
[White "Sichinava, Mariam"]
[Black "Zarkua, Anastasia"]
[Result "1/2-1/2"]
[ECO "D76"]
[WhiteElo "1516"]
[BlackElo "1124"]
[Annotator "NA RC"]
[PlyCount "60"]
[EventDate "2020.11.04"]
[EventType "swiss"]
[SourceTitle "playchess.com"]
[Source "ChessBase"]
[SourceQuality "1"]
[TimeControl "1500+5"]

1. Nf3 {[%emt 0:00:02]} d5 {[%emt 0:00:06]} 2. g3 {[%emt 0:00:11]} Nf6 {[%emt 0:00:03]} 3. Bg2 {[%emt 0:00:02]} g6 {[%emt 0:00:01]} 4. c4 {[%emt 0:00:01]} Bg7 {[%emt 0:00:20]} 5. cxd5 {[%emt 0:00:04]} Nxd5 {[%emt 0:00:04]} 6. O-O {[%emt 0:00:01]} O-O {[%emt 0:00:03]} 7. d4 {[%emt 0:00:02]} Nb6 {[%emt 0:00:13]} 8. Nc3 {[%emt 0:00:03]} Nc6 {[%emt 0:00:03]} 9. e3 {[%emt 0:00:05]} Bf5 {[%emt 0:00:06]} 10. d5 {[%emt 0:01:43]} Ne5 {[%emt 0:02:16]} 11. Nxe5 {[%emt 0:00:09]} Bxe5 {[%emt 0:00:04]} 12. e4 {[%emt 0:00:03]} Bd7 {[%emt 0:00:13]} 13. Bh6 {[%emt 0:00:07]} Bg7 {[%emt 0:00:04]} 14. Bxg7 {[%emt 0:00:04]} Kxg7 {[%emt 0:00:02]} 15. Qd4+ {[%emt 0:00:17]} Kg8 {[%emt 0:00:03]} 16. a4 {[%emt 0:00:06]} a5 {[%emt 0:01:07]} 17. Rac1 {[%emt 0:00:13]} Rc8 {[%emt 0:00:35]} 18. Rfd1 {[%emt 0:00:44]} Bg4 {[%emt 0:01:26]} 19. Rd2 {[%emt 0:00:13]} Qd7 {[%emt 0:01:01]} 20. Nb5 {[%emt 0:00:31]} Rfd8 {[%emt 0:02:06]} 21. f3 {[%emt 0:00:59]} Bh3 {[%emt 0:00:34]} 22. Bxh3 {[%emt 0:00:11]} Qxh3 {[%emt 0:00:05]} 23. Rxc7 {[%emt 0:00:04]} Rxc7 {[%emt 0:01:42]} 24. Nxc7 {[%emt 0:00:07]} Na8 {[%emt 0:00:26]} 25. Nb5 {[%emt 0:01:38]} Rc8 {[%emt 0:00:35]} 26. Rd1 {[%emt 0:00:13]} Rc2 {[%emt 0:00:18]} 27. Rd2 {[%emt 0:02:10]} Rc1+ {[%emt 0:00:23]} 28. Rd1 {[%emt 0:00:06]} Rc2 {[%emt 0:00:03]} 29. Rd2 {[%emt 0:00:02]} Rc1+ {[%emt 0:00:02]} 30. Rd1 {[%emt 0:00:03]} Rc2 {[%emt 0:00:07]} 1/2-1/2

[Event "Gaprindashvili Cup Women I Stage 2020"]
[Site "Online"]
[Date "2020.11.04"]
[Round "3.8"]
[White "Ashotia, Barbare"]
[Black "Abuladze, Natali"]
[Result "0-1"]
[ECO "B22"]
[WhiteElo "1076"]
[BlackElo "1049"]
[Annotator "NA RC"]
[PlyCount "100"]
[EventDate "2020.11.04"]
[EventType "swiss"]
[SourceTitle "playchess.com"]
[Source "ChessBase"]
[SourceQuality "1"]
[TimeControl "1500+5"]

1. e4 {[%emt 0:00:00]} c5 {[%emt 0:00:10]} 2. c3 {[%emt 0:00:24]} d5 {[%emt 0:00:04]} 3. exd5 {[%emt 0:00:08]} Qxd5 {[%emt 0:00:03]} 4. d4 {[%emt 0:00:10]} Nf6 {[%emt 0:00:05]} 5. Nf3 {[%emt 0:00:17]} e6 {[%emt 0:00:09]} 6. Be2 {[%emt 0:00:28]} Be7 {[%emt 0:00:19]} 7. O-O {[%emt 0:00:06]} O-O {[%emt 0:00:05]} 8. Bf4 {[%emt 0:00:22]} Nc6 {[%emt 0:00:30]} 9. Re1 {[%emt 0:00:58]} a6 {[%emt 0:00:21]} 10. Ne5 {[%emt 0:01:15]} cxd4 {[%emt 0:00:25]} 11. Nxc6 {[%emt 0:00:06]} Qxc6 {[%emt 0:00:07]} 12. cxd4 {[%emt 0:00:28]} Rd8 {[%emt 0:00:27]} 13. Bf3 {[%emt 0:00:40]} Qb6 {[%emt 0:00:09]} 14. Re2 {[%emt 0:02:33]} Rxd4 {[%emt 0:00:23]} 15. Qc1 {[%emt 0:00:19]} Qd8 {[%emt 0:00:20]} 16. Rd2 {[%emt 0:01:03]} Rxd2 {[%emt 0:00:20]} 17. Nxd2 {[%emt 0:00:13]} Nd5 {[%emt 0:00:47]} 18. Bg3 {[%emt 0:01:19]} b5 {[%emt 0:00:12]} 19. Nb3 {[%emt 0:00:19]} Bb7 {[%emt 0:00:11]} 20. Qd2 {[%emt 0:00:36]} Rc8 {[%emt 0:00:40]} 21. Rc1 {[%emt 0:00:47]} Rxc1+ {[%emt 0:01:14]} 22. Qxc1 {[%emt 0:00:13]} Qc8 {[%emt 0:01:25]} 23. Qxc8+ {[%emt 0:02:41]} Bxc8 {[%emt 0:00:10]} 24. Be5 {[%emt 0:00:37]} f6 {[%emt 0:00:42]} 25. Bd4 {[%emt 0:00:12]} Kf7 {[%emt 0:00:57]} 26. Kf1 {[%emt 0:00:17]} Nb4 {[%emt 0:00:24]} 27. a3 {[%emt 0:00:18]} Nd3 {[%emt 0:00:29]} 28. Ke2 {[%emt 0:00:35]} Nf4+ {[%emt 0:00:14]} 29. Kd2 {[%emt 0:00:16]} e5 {[%emt 0:00:08]} 30. Bc3 {[%emt 0:00:04]} Be6 {[%emt 0:00:16]} 31. Na5 {[%emt 0:00:22]} Bd5 {[%emt 0:00:40]} 32. Bxd5+ {[%emt 0:00:29]} Nxd5 {[%emt 0:00:04]} 33. Nc6 {[%emt 0:00:17]} Bc5 {[%emt 0:00:13]} 34. f3 {[%emt 0:00:23]} Ke6 {[%emt 0:00:41]} 35. g4 {[%emt 0:01:54]} Nxc3 {[%emt 0:00:42]} 36. Kxc3 {[%emt 0:00:21]} Kd5 {[%emt 0:00:30]} 37. Nb4+ {[%emt 0:00:22]} Bxb4+ {[%emt 0:00:21]} 38. Kxb4 {[%emt 0:00:09]} Kd4 {[%emt 0:00:06]} 39. Ka5 {[%emt 0:00:54]} Ke3 {[%emt 0:00:12]} 40. Kxa6 {[%emt 0:00:01]} Kxf3 {[%emt 0:00:04]} 41. Kxb5 {[%emt 0:00:02]} e4 {[%emt 0:00:04]} 42. a4 {[%emt 0:00:02]} e3 {[%emt 0:00:14]} 43. a5 {[%emt 0:00:02]} e2 {[%emt 0:00:03]} 44. a6 {[%emt 0:00:02]} e1=Q {[%emt 0:00:05]} 45. b4 {[%emt 0:00:09]} Qe8+ {[%emt 0:00:10]} 46. Kb6 {[%emt 0:00:09]} Qb8+ {[%emt 0:00:07]} 47. Ka5 {[%emt 0:00:17]} Qc7+ {[%emt 0:00:59]} 48. Ka4 {[%emt 0:00:35]} Kxg4 {[%emt 0:00:33]} 49. b5 {[%emt 0:00:04]} Qb6 {[%emt 0:00:16]} 50. Kb4 {[%emt 0:00:05]} f5 {[%emt 0:00:07]} 0-1

[Event "Gaprindashvili Cup Women I Stage 2020"]
[Site "Online"]
[Date "2020.11.04"]
[Round "3.9"]
[White "Asatiani, Tamar"]
[Black "Didbaridze, Meri"]
[Result "1-0"]
[ECO "C02"]
[WhiteElo "1004"]
[BlackElo "1264"]
[Annotator "NA"]
[PlyCount "91"]
[EventDate "2020.11.04"]
[EventType "swiss"]
[SourceTitle "playchess.com"]
[Source "ChessBase"]
[SourceQuality "1"]
[TimeControl "1500+5"]

1. e4 {[%emt 0:00:02]} e6 {[%emt 0:00:05]} 2. d4 {[%emt 0:00:03]} d5 {[%emt 0:00:10]} 3. e5 {[%emt 0:00:01]} c5 {[%emt 0:00:03]} 4. c3 {[%emt 0:00:05]} Nc6 {[%emt 0:00:02]} 5. Nf3 {[%emt 0:00:07]} Qb6 {[%emt 0:00:02]} 6. a3 {[%emt 0:00:42]} Bd7 {[%emt 0:00:21]} 7. b4 {[%emt 0:00:07]} cxd4 {[%emt 0:00:04]} 8. cxd4 {[%emt 0:00:03]} a6 {[%emt 0:00:05]} 9. Be2 {[%emt 0:00:40]} Be7 {[%emt 0:00:07]} 10. O-O {[%emt 0:00:07]} f6 {[%emt 0:00:07]} 11. Bb2 {[%emt 0:00:47]} Nh6 {[%emt 0:00:14]} 12. Nc3 {[%emt 0:00:34]} fxe5 {[%emt 0:01:18]} 13. Na4 {[%emt 0:00:35]} Qc7 {[%emt 0:00:07]} 14. dxe5 {[%emt 0:00:03]} Nf7 {[%emt 0:01:21]} 15. Rc1 {[%emt 0:00:42]} b5 {[%emt 0:00:23]} 16. Nc5 {[%emt 0:00:55]} Bxc5 {[%emt 0:00:06]} 17. Rxc5 {[%emt 0:00:03]} O-O {[%emt 0:01:09]} 18. Qc2 {[%emt 0:01:03]} Qd8 {[%emt 0:00:51]} 19. Bd3 {[%emt 0:01:16]} h6 {[%emt 0:00:37]} 20. Re1 {[%emt 0:00:28]} Rc8 {[%emt 0:00:45]} 21. h3 {[%emt 0:02:12]} Ng5 {[%emt 0:02:11]} 22. Nd4 {[%emt 0:02:29]} Nxd4 {[%emt 0:00:17]} 23. Bxd4 {[%emt 0:00:03]} Nf7 {[%emt 0:02:01]} 24. Rxc8 {[%emt 0:03:00]} Qxc8 {[%emt 0:00:13]} 25. Bc5 {[%emt 0:00:07]} Re8 {[%emt 0:00:45]} 26. Bh7+ {[%emt 0:01:14]} Kh8 {[%emt 0:00:05]} 27. Bg6 {[%emt 0:00:03]} Kg8 {[%emt 0:00:13]} 28. Qd3 {[%emt 0:00:21]} Rd8 {[%emt 0:00:25]} 29. Bb6 {[%emt 0:02:12]} Rf8 {[%emt 0:00:42]} 30. Bh7+ {[%emt 0:00:43]} Kh8 {[%emt 0:00:05]} 31. Bc5 {[%emt 0:00:07]} Re8 {[%emt 0:01:18]} 32. Bg6 {[%emt 0:00:14]} Kg8 {[%emt 0:00:14]} 33. Qf3 {[%emt 0:00:37]} Ng5 {[%emt 0:00:13]} 34. Qf4 {[%emt 0:00:13]} Rd8 {[%emt 0:00:22]} 35. Be7 {[%emt 0:00:02]} Be8 {[%emt 0:00:17]} 36. Bxd8 {[%emt 0:00:09]} Bxg6 {[%emt 0:00:05]} 37. Bxg5 {[%emt 0:00:03]} hxg5 {[%emt 0:00:03]} 38. Qxg5 {[%emt 0:00:02]} Be4 {[%emt 0:00:09]} 39. h4 {[%emt 0:00:12]} Qf8 {[%emt 0:00:26]} 40. Rc1 {[%emt 0:00:28]} Qb8 {[%emt 0:05:24]} 41. h5 {[%emt 0:00:12]} Kh8 {[%emt 0:00:10]} 42. h6 {[%emt 0:00:11]} Qf8 {[%emt 0:01:21]} 43. hxg7+ {[%emt 0:00:14]} Qxg7 {[%emt 0:00:04]} 44. Rc8+ {[%emt 0:00:03]} Kh7 {[%emt 0:00:06]} 45. Qh5+ {[%emt 0:00:04]} Qh6 {[%emt 0:00:04]} 46. Rh8+ {[%emt 0:00:03]} 1-0

[Event "Gaprindashvili Cup Women I Stage 2020"]
[Site "Online"]
[Date "2020.11.04"]
[Round "3.10"]
[White "Gvatua, Mariam"]
[Black "Tsetskhladze, Mariam"]
[Result "1-0"]
[ECO "A87"]
[WhiteElo "1343"]
[BlackElo "1477"]
[Annotator "NA RC"]
[PlyCount "91"]
[EventDate "2020.11.04"]
[EventType "swiss"]
[SourceTitle "playchess.com"]
[Source "ChessBase"]
[SourceQuality "1"]
[TimeControl "1500+5"]

1. d4 {[%emt 0:00:02]} d6 {[%emt 0:00:10]} 2. c4 {[%emt 0:00:03]} f5 {[%emt 0:00:03]} 3. Nc3 {[%emt 0:00:03]} Nf6 {[%emt 0:00:04]} 4. Nf3 {[%emt 0:00:01]} g6 {[%emt 0:00:03]} 5. g3 {[%emt 0:00:02]} Bg7 {[%emt 0:00:02]} 6. Bg2 {[%emt 0:00:01]} O-O {[%emt 0:00:04]} 7. d5 {[%emt 0:00:04]} a5 {[%emt 0:00:05]} 8. O-O {[%emt 0:00:02]} Na6 {[%emt 0:00:02]} 9. Nd4 {[%emt 0:00:02]} Nc5 {[%emt 0:00:03]} 10. Bg5 {[%emt 0:00:01]} Nfe4 {[%emt 0:02:46]} 11. Bxe4 {[%emt 0:00:42]} fxe4 {[%emt 0:00:24]} 12. f3 {[%emt 0:00:19]} exf3 {[%emt 0:01:06]} 13. exf3 {[%emt 0:00:07]} h6 {[%emt 0:00:02]} 14. Be3 {[%emt 0:00:04]} e5 {[%emt 0:00:22]} 15. Nde2 {[%emt 0:00:14]} Qe7 {[%emt 0:01:59]} 16. Bxc5 {[%emt 0:00:28]} dxc5 {[%emt 0:00:07]} 17. Ne4 {[%emt 0:00:03]} Rd8 {[%emt 0:00:37]} 18. N2c3 {[%emt 0:00:10]} b6 {[%emt 0:04:46]} 19. Qe2 {[%emt 0:00:53]} Bb7 {[%emt 0:01:13]} 20. Rad1 {[%emt 0:00:14]} Rd7 {[%emt 0:03:05]} 21. Nb5 {[%emt 0:02:42]} c6 {[%emt 0:01:51]} 22. d6 {[%emt 0:00:30]} Qd8 {[%emt 0:00:19]} 23. Nc7 {[%emt 0:00:06]} Rc8 {[%emt 0:00:09]} 24. Ne6 {[%emt 0:00:09]} Qe8 {[%emt 0:00:21]} 25. Nxg7 {[%emt 0:00:29]} Kxg7 {[%emt 0:00:14]} 26. b3 {[%emt 0:00:13]} Qe6 {[%emt 0:00:36]} 27. Qb2 {[%emt 0:00:16]} Re8 {[%emt 0:00:29]} 28. Rfe1 {[%emt 0:00:51]} Qf5 {[%emt 0:00:27]} 29. Kg2 {[%emt 0:00:35]} Rf7 {[%emt 0:01:30]} 30. Rf1 {[%emt 0:00:17]} Ref8 {[%emt 0:00:37]} 31. d7 {[%emt 0:01:25]} Rxd7 {[%emt 0:01:32]} 32. Rxd7+ {[%emt 0:00:11]} Qxd7 {[%emt 0:00:03]} 33. Qxe5+ {[%emt 0:00:02]} Kf7 {[%emt 0:00:05]} 34. Qf6+ {[%emt 0:00:34]} Kg8 {[%emt 0:00:19]} 35. Qxg6+ {[%emt 0:00:07]} Qg7 {[%emt 0:00:02]} 36. Qe6+ {[%emt 0:00:23]} Kh8 {[%emt 0:00:06]} 37. Rf2 {[%emt 0:00:39]} Rd8 {[%emt 0:00:48]} 38. Nd6 {[%emt 0:01:03]} Kh7 {[%emt 0:00:43]} 39. Ne8 {[%emt 0:00:37]} Qf8 {[%emt 0:00:48]} 40. Nf6+ {[%emt 0:00:16]} Kg7 {[%emt 0:00:03]} 41. Nh5+ {[%emt 0:00:20]} Kh7 {[%emt 0:00:05]} 42. Qe4+ {[%emt 0:00:09]} Kh8 {[%emt 0:00:07]} 43. Qg6 {[%emt 0:00:10]} Rc8 {[%emt 0:00:08]} 44. Nf4 {[%emt 0:00:21]} Re8 {[%emt 0:00:04]} 45. Qh5 {[%emt 0:00:09]} Bc8 {[%emt 0:00:05]} 46. Ng6+ {[%emt 0:00:02]} 1-0